fUSD/lending_fUSD_20241220
["ID","MTS","AMOUNT","RATE_DAILY","PERIOD"]
[346059348,1734682231895,-300.0,0.00021712,2]
[346059349,1734682231904,-1394.0760086,0.00021713,2]
[346059350,1734682231913,-3923.9473851,0.00021713,2]
[346059351,1734682231922,-886.18399461,0.00021713,2]
[346059352,1734682232079,-807.1663636,0.00021713,2]
[346059353,1734682232090,-5963.02350034,0.00021717,2]
[346059354,1734682232108,-974.9768842,0.00021717,2]
[346059355,1734682232120,-65285.38346793,0.00021717,2]
[346059356,1734682232135,-515.24829337,0.00021717,2]
[346059357,1734682232147,-547.91945619,0.00021717,2]
[346059361,1734682237584,-10911.52438795,0.00021717,2]
[346059362,1734682237595,-50962.07121472,0.00021717,2]
[346059363,1734682237637,-1165.9087451,0.00021717,2]
[346059364,1734682237648,-1927.29943806,0.00021717,2]
[346059365,1734682237659,-414.86157388,0.00021717,2]
[346059366,1734682237746,-8959.73937636,0.00021717,2]
[346059367,1734682237757,-457.2991466,0.00021717,2]
[346059368,1734682237769,-96705.70278167,0.00021717,2]
[346059405,1734682239780,-77727.48348572,0.00021717,2]
[346059406,1734682239903,-49250.00000098,0.00021717,2]
[346059413,1734682242749,-76.11807906,0.00021717,2]
[346059415,1734682243023,-536.08000014,0.00021717,2]
[346059422,1734682245609,-585.126,0.00021717,2]
[346059424,1734682245620,-1686.47795052,0.00021717,2]
[346059439,1734682245815,-1156.76820125,0.00021717,2]
[346059446,1734682247013,-130461.32023126,0.00021717,2]
[346059447,1734682431290,167.61,0.00010137,2]
[346059450,1734682487575,154.28,0.00020637,30]
[346059451,1734682625560,4992.29299999,0.00015122,7]
[346059452,1734682653024,3442.58174001,0.00015122,7]
[346059453,1734683126684,80002.2667533,0.000235,120]
[346059456,1734683273668,159.17,0.00010137,2]
[346059480,1734683431939,-401.42572519,0.000129,2]
[346059481,1734683431950,-552.53426267,0.000129,2]
[346059482,1734683431960,-500.0,0.00012999,2]
[346059483,1734683431973,-168.45927864,0.00012999,2]
[346059484,1734683431984,-300.0,0.00012999,2]
[346059485,1734683432008,-247893.83568424,0.00013,2]
[346059486,1734683435817,-470.06584109,0.00013,2]
[346059487,1734683435876,-1544.37166,0.00013,2]
[346059488,1734683435936,-29932.55788102,0.00013,2]
[346059489,1734683435948,-1229.28554132,0.00013,2]
[346059490,1734683435997,-38786.99295809,0.00013,2]
[346059491,1734683436108,-387.5910222,0.00013,2]
[346059507,1734683437807,-2279.10043339,0.00013,2]
[346059508,1734683437825,-31247.94896416,0.00013,2]
[346059509,1734683437845,-1347.85277501,0.00013,2]
[346059510,1734683437865,-513.20581349,0.00013,2]
[346059511,1734683437884,-2279.77386091,0.00013,2]
[346059512,1734683437904,-2279.81970247,0.00013,2]
[346059513,1734683437929,-389.962,0.00013,2]
[346059514,1734683437947,-372.22790633,0.00013,2]
[346059515,1734683437961,-1429.8350692,0.00013,2]
[346059516,1734683437992,-4905.14559269,0.00013,2]
[346059517,1734683438246,-432.4999705,0.00013,2]
[346059518,1734683438304,-1418.42215544,0.00013,2]
[346059542,1734683439893,-901.5899387,0.00013,2]
[346059543,1734683440117,-9895.81714876,0.00013,2]
[346059544,1734683440191,-833.04225505,0.00013,2]
[346059545,1734683440207,-483.21795857,0.00013,2]
[346059546,1734683440223,-452.45572213,0.00013,2]
[346059547,1734683440247,-1838.46215706,0.00013,2]
[346059588,1734683443548,-3550339.82430316,0.00013,2]
[346059591,1734683443559,-84299.71171325,0.00013,2]
[346059593,1734683443568,-450.0,0.00013,2]
[346059596,1734683443577,-188.61389391,0.00013499,2]
[346059597,1734683443587,-160.43,0.00013699,2]
[346059599,1734683443595,-401.42572514,0.00013789,2]
[346059600,1734683443605,-401.42572514,0.00014678,2]
[346059601,1734683443614,-500.0,0.00015,2]
[346059602,1734683443623,-401.42572514,0.00015567,2]
[346059603,1734683443633,-1092.73845342,0.000157,2]
[346059604,1734683443642,-150.44526902,0.00016438,2]
[346059605,1734683443651,-401.42572514,0.00016456,2]
[346059606,1734683443661,-974.12,0.00016812,2]
[346059607,1734683443670,-159.17,0.00016813,2]
[346059608,1734683443679,-30110.08547566,0.00017,5]
[346059609,1734683443688,-550.0,0.00017,2]
[346059610,1734683443698,-500.0,0.00017045,2]
[346059611,1734683443707,-401.42572514,0.00017344,2]
[346059612,1734683443716,-191.74,0.000179,2]
[346059613,1734683443725,-191.74,0.000179,2]
[346059614,1734683443734,-191.74,0.000179,2]
[346059615,1734683443745,-191.74,0.000179,2]
[346059616,1734683443754,-191.74,0.000179,2]
[346059617,1734683443763,-191.74,0.000179,2]
[346059618,1734683443772,-191.74,0.000179,2]
[346059619,1734683443781,-191.74,0.000179,2]
[346059620,1734683443790,-191.74,0.000179,2]
[346059621,1734683443800,-191.74,0.000179,2]
[346059622,1734683443809,-191.74,0.000179,2]
[346059623,1734683443818,-191.74,0.000179,2]
[346059624,1734683443827,-191.74,0.000179,2]
[346059625,1734683443836,-191.74,0.000179,2]
[346059626,1734683443845,-191.74,0.000179,2]
[346059627,1734683443855,-191.74,0.000179,2]
[346059628,1734683443863,-191.74,0.000179,2]
[346059629,1734683443872,-191.74,0.000179,2]
[346059630,1734683443881,-191.74,0.000179,2]
[346059631,1734683443890,-191.74,0.000179,2]
[346059632,1734683443899,-191.74,0.000179,2]
[346059633,1734683443909,-191.74,0.000179,2]
[346059634,1734683443918,-191.74,0.000179,2]
[346059635,1734683443927,-191.74,0.000179,2]
[346059636,1734683443936,-191.74,0.000179,2]
[346059637,1734683443945,-191.74,0.000179,2]
[346059638,1734683443955,-191.74,0.000179,2]
[346059639,1734683443965,-191.74,0.000179,2]
[346059640,1734683443975,-191.74,0.000179,2]
[346059641,1734683443984,-191.74,0.000179,2]
[346059642,1734683443995,-191.74,0.000179,2]
[346059643,1734683444004,-191.74,0.000179,2]
[346059644,1734683444014,-191.74,0.000179,2]
[346059645,1734683444023,-191.74,0.000179,2]
[346059646,1734683444035,-191.74,0.000179,2]
[346059647,1734683444045,-191.74,0.000179,2]
[346059648,1734683444055,-191.74,0.000179,2]
[346059649,1734683444064,-191.74,0.000179,2]
[346059650,1734683444073,-191.74,0.000179,2]
[346059651,1734683444084,-191.74,0.000179,2]
[346059652,1734683444093,-191.74,0.000179,2]
[346059653,1734683444103,-191.74,0.000179,2]
[346059654,1734683444112,-191.74,0.000179,2]
[346059655,1734683444121,-191.74,0.000179,2]
[346059656,1734683444131,-191.74,0.000179,2]
[346059657,1734683444141,-191.74,0.000179,2]
[346059658,1734683444150,-191.74,0.000179,2]
[346059659,1734683444160,-191.74,0.000179,2]
[346059660,1734683444169,-191.74,0.000179,2]
[346059661,1734683444179,-191.74,0.000179,2]
[346059662,1734683444188,-191.74,0.000179,2]
[346059663,1734683444197,-191.74,0.000179,2]
[346059664,1734683444206,-191.74,0.000179,2]
[346059665,1734683444216,-191.74,0.000179,2]
[346059666,1734683444225,-191.74,0.000179,2]
[346059667,1734683444234,-191.74,0.000179,2]
[346059668,1734683444245,-191.74,0.000179,2]
[346059669,1734683444254,-191.74,0.000179,2]
[346059670,1734683444264,-191.74,0.000179,2]
[346059671,1734683444273,-191.74,0.000179,2]
[346059672,1734683444282,-191.74,0.000179,2]
[346059673,1734683444292,-191.74,0.000179,2]
[346059674,1734683444301,-191.74,0.000179,2]
[346059675,1734683444311,-401.42572514,0.00018233,2]
[346059676,1734683444320,-1000.0,0.00018836,2]
[346059677,1734683444329,-552.53426266,0.000189,2]
[346059678,1734683444339,-168.8545,0.00018943,2]
[346059679,1734683444350,-600.0,0.00019,2]
[346059680,1734683444359,-191.74,0.00019033,2]
[346059682,1734683444370,-191.74,0.00019033,2]
[346059684,1734683444380,-191.74,0.00019033,2]
[346059686,1734683444389,-191.74,0.00019033,2]
[346059688,1734683444399,-192337.51993502,0.00019043,2]
[346059690,1734683444408,-3958.63770504,0.00019043,2]
[346059692,1734683444418,-974.12,0.00019076,2]
[346059693,1734683444429,-401.42572514,0.00019122,2]
[346059694,1734683444439,-150.0,0.00019701,4]
[346059695,1734683444448,-150.0,0.00019701,4]
[346059696,1734683444460,-150.0,0.00019701,4]
[346059697,1734683444470,-150.0,0.00019701,4]
[346059698,1734683444479,-150.0,0.00019701,4]
[346059699,1734683444489,-150.0,0.00019701,4]
[346059700,1734683444502,-283.87244898,0.00019701,4]
[346059701,1734683444512,-150.0,0.00019701,4]
[346059702,1734683444521,-150.0,0.00019701,4]
[346059703,1734683444531,-150.0,0.00019701,4]
[346059704,1734683444540,-158.25900353,0.00019701,4]
[346059705,1734683444549,-150.0,0.00019701,4]
[346059706,1734683444559,-171.24060771,0.00019701,4]
[346059707,1734683444569,-150.59444624,0.00019701,4]
[346059708,1734683444578,-150.0,0.00019701,4]
[346059709,1734683444588,-250.0,0.00019719,2]
[346059710,1734683444597,-150.0,0.00019793,4]
[346059711,1734683444607,-150.0,0.00019817,4]
[346059712,1734683444616,-150.0,0.00019858,4]
[346059713,1734683444625,-150.0,0.00019884,4]
[346059714,1734683444634,-150.0,0.00019932,4]
[346059715,1734683444643,-150.0,0.00019975,4]
[346059716,1734683444653,-222.22222952,0.0002,2]
[346059717,1734683444662,-2491.80303433,0.0002,2]
[346059718,1734683444672,-26933.80686757,0.0002,4]
[346059719,1734683444681,-1000.0,0.0002,2]
[346059720,1734683444692,-115401.37088641,0.0002,5]
[346059721,1734683444701,-401.42572514,0.00020011,2]
[346059722,1734683444710,-150.0,0.00020014,4]
[346059723,1734683444720,-150.0,0.00020047,4]
[346059724,1734683444729,-191.74,0.00020058,2]
[346059725,1734683444739,-150.0,0.00020066,4]
[346059726,1734683444750,-150.0,0.00020066,4]
[346059727,1734683444760,-800.0,0.00020068,2]
[346059728,1734683444770,-500.0,0.00020068,2]
[346059729,1734683444915,-150.0,0.00020157,4]
[346059730,1734683444927,-150.0,0.00020162,4]
[346059731,1734683444937,-802.34,0.00020163,2]
[346059732,1734683444946,-150.0,0.0002017,4]
[346059733,1734683444956,-166.04,0.00020189,2]
[346059734,1734683444965,-1697.7,0.00020229,2]
[346059735,1734683444974,-150.0,0.00020249,4]
[346059736,1734683444984,-150.0,0.00020277,4]
[346059737,1734683444993,-3000.0,0.000203,2]
[346059738,1734683445006,-150.0,0.00020327,4]
[346059739,1734683445015,-150.0,0.0002034,4]
[346059740,1734683445025,-227.06,0.00020347,2]
[346059741,1734683445034,-167.27,0.00020347,2]
[346059742,1734683445044,-150.0,0.00020393,4]
[346059743,1734683445053,-150.0,0.00020431,4]
[346059744,1734683445063,-150.0,0.00020431,4]
[346059745,1734683445072,-150.0,0.00020483,4]
[346059746,1734683445082,-167.38,0.00020485,2]
[346059747,1734683445091,-150.0,0.00020508,4]
[346059748,1734683445100,-150.0,0.00020522,4]
[346059749,1734683445109,-23247.18333437,0.00020609,2]
[346059750,1734683445118,-150.0,0.00020613,4]
[346059751,1734683445127,-150.0,0.00020623,4]
[346059752,1734683445136,-416.798,0.0002063,2]
[346059753,1734683445145,-150.0,0.0002064,4]
[346059754,1734683445154,-150.0,0.00020705,4]
[346059755,1734683445163,-250.0,0.00020713,2]
[346059756,1734683445173,-150.0,0.00020738,4]
[346059757,1734683445182,-150.0,0.00020796,4]
[346059758,1734683445191,-150.0,0.00020796,4]
[346059759,1734683445200,-150.0,0.00020796,4]
[346059760,1734683445209,-150.0,0.00020796,4]
[346059761,1734683445218,-4507.6357,0.000208,2]
[346059762,1734683445228,-150.0,0.00020853,4]
[346059763,1734683445237,-250.0,0.00020881,2]
[346059764,1734683445249,-150.0,0.00020887,4]
[346059765,1734683445258,-191.74,0.0002089,2]
[346059766,1734683445267,-191.74,0.0002089,2]
[346059767,1734683445276,-191.74,0.0002089,2]
[346059768,1734683445286,-191.74,0.0002089,2]
[346059769,1734683445295,-179.58106759,0.00020898,2]
[346059770,1734683445304,-209092.2445,0.000209,2]
[346059771,1734683445313,-401.42572514,0.000209,2]
[346059772,1734683445322,-191.74,0.00020941,2]
[346059773,1734683445331,-12961.17,0.00020951,2]
[346059774,1734683445340,-17651.43,0.00020951,2]
[346059775,1734683445349,-150.0,0.00020952,4]
[346059776,1734683445358,-150.0,0.00020969,4]
[346059777,1734683445367,-185.15559227,0.00020973,2]
[346059778,1734683445378,-150.0,0.00020978,4]
[346059779,1734683445387,-191.74,0.0002099,2]
[346059780,1734683445396,-191.74,0.0002099,2]
[346059781,1734683445405,-191.74,0.0002099,2]
[346059782,1734683445414,-191.74,0.0002099,2]
[346059783,1734683445427,-191.74,0.0002099,2]
[346059784,1734683445437,-191.74,0.0002099,2]
[346059785,1734683445446,-191.74,0.0002099,2]
[346059786,1734683445455,-191.74,0.0002099,2]
[346059787,1734683445464,-191.74,0.0002099,2]
[346059788,1734683445475,-191.74,0.0002099,2]
[346059789,1734683445485,-191.74,0.0002099,2]
[346059790,1734683445497,-191.74,0.0002099,2]
[346059791,1734683445507,-191.74,0.0002099,2]
[346059792,1734683445517,-500.0,0.00020998,2]
[346059793,1734683445527,-879.0,0.00020998,2]
[346059794,1734683445535,-218950.08788598,0.00021,2]
[346059795,1734683445550,-299.615,0.00021,2]
[346059796,1734683445562,-298.63535195,0.00021,2]
[346059797,1734683445573,-1125.07385367,0.00021,2]
[346059798,1734683445594,-3197.54513101,0.00021,2]
[346059799,1734683445684,-7764.0017081,0.00021,2]
[346059800,1734683445711,-426.29565446,0.00021,2]
[346059802,1734683445722,-1516.09418244,0.00021,2]
[346059805,1734683445734,-567.13025548,0.00021,2]
[346059808,1734683445749,-300.19075284,0.00021,2]
[346059810,1734683445760,-402.6,0.00021,2]
[346059829,1734683445904,-3360.58897645,0.00021,2]
[346059832,1734683445924,-2096.34144121,0.00021,2]
[346059834,1734683445958,-8896.85184912,0.00021,2]
[346059835,1734683445970,-4519.32312282,0.00021,2]
[346059836,1734683445982,-2912.45,0.00021,2]
[346059837,1734683445994,-6635.38664912,0.00021,2]
[346059838,1734683446007,-1139.1771887,0.00021,2]
[346059839,1734683446023,-4066.22904491,0.00021,2]
[346059840,1734683446040,-1125.899995,0.00021,2]
[346059841,1734683446075,-4870.2711,0.00021,2]
[346059842,1734683446190,-38798.39999997,0.00021,2]
[346059843,1734683526205,150.39,0.00020615,30]
[346059844,1734683592693,2000.0,0.000235,120]
[346059845,1734683604356,202.309541,0.000235,120]
[346059846,1734684160554,192.17,0.00010137,2]
[346059848,1734684524271,150.39,0.00019409,30]
[346059849,1734684561177,-160.43,0.00013699,2]
[346059850,1734684561209,-991.66,0.00017385,2]
[346059851,1734684561241,-177.38945818,0.000181,2]
[346059852,1734684561273,-245.06,0.000182,2]
[346059853,1734684561304,-252.23,0.000182,2]
[346059854,1734684561334,-247.86,0.000182,2]
[346059855,1734684561365,-246.2,0.000182,2]
[346059856,1734684561400,-177.38945818,0.00018211,2]
[346059857,1734684561429,-500.0,0.00018311,2]
[346059858,1734684561449,-150.0,0.00018329,2]
[346059859,1734684561470,-165.86,0.00018348,2]
[346059860,1734684561490,-1000.0,0.00018389,2]
[346059861,1734684561749,-250.0,0.00018637,2]
[346059862,1734684561770,-2405.19,0.00018894,2]
[346059863,1734684561792,-155.54,0.00018933,2]
[346059864,1734684561816,-250.0,0.00019211,2]
[346059865,1734684561837,-104.08244764,0.00019245,2]
[346059875,1734684577798,400.0,0.00023,120]
[346059887,1734684631947,-500.0,0.00019178,2]
[346059888,1734684631958,-247.86,0.00019178,2]
[346059889,1734684631967,-254.97,0.00019178,2]
[346059890,1734684631977,-95.91755236,0.00019245,2]
[346059891,1734684631989,-253.11,0.00019256,2]
[346059892,1734684631999,-253.68,0.00019261,2]
[346059893,1734684632020,-706.26415323,0.00019262,2]
[346059894,1734684632045,-224.08584677,0.00019262,2]
[346059895,1734684632056,-156.59179375,0.00019331,2]
[346059896,1734684632068,-254.42538324,0.00019331,2]
[346059897,1734684632081,-417.15282301,0.00019331,2]
[346059898,1734684632091,-422.84717699,0.00019421,2]
[346059899,1734684632108,-1420.41282301,0.00019421,2]
[346059900,1734684632117,-3638.601286,0.00019463,2]
[346059901,1734684632128,-2970.2462318,0.00019463,2]
[346059902,1734684632141,-1587.89459183,0.00019463,2]
[346059903,1734684636350,-254.41,0.00019178,2]
[346059904,1734684636360,-102.32361222,0.00019463,2]
[346059905,1734684636371,-294.71876031,0.00019463,2]
[346059906,1734684636387,-12796.81551784,0.00019463,2]
[346059907,1734684636396,-11272.08,0.00019517,2]
[346059908,1734684636405,-168.23,0.00019526,2]
[346059909,1734684636415,-1000.0,0.00019635,2]
[346059910,1734684636424,-991.66,0.00019649,2]
[346059911,1734684636434,-150.0,0.00019701,4]
[346059912,1734684636443,-150.0,0.00019701,4]
[346059913,1734684636453,-263.71447173,0.00019701,4]
[346059914,1734684636463,-169.74857859,0.00019701,4]
[346059915,1734684636472,-150.0,0.00019701,4]
[346059917,1734684636482,-150.83812936,0.00019701,4]
[346059918,1734684636491,-150.94899447,0.00019701,4]
[346059920,1734684636501,-150.48093492,0.00019701,4]
[346059923,1734684636516,-274.7746202,0.00019701,4]
[346059924,1734684636526,-150.0,0.00019701,4]
[346059926,1734684636536,-150.0,0.00019701,4]
[346059927,1734684636546,-150.0,0.0001992,4]
[346059929,1734684636555,-150.0,0.00020014,4]
[346059931,1734684636566,-153.0,0.00020022,2]
[346059933,1734684636576,-153.0,0.00020022,2]
[346059934,1734684636586,-153.0,0.00020022,2]
[346059935,1734684636596,-153.0,0.00020022,2]
[346059936,1734684636605,-153.0,0.00020022,2]
[346059937,1734684636615,-153.0,0.00020022,2]
[346059938,1734684636624,-168.3,0.00020062,2]
[346059939,1734684636634,-500.0,0.00020068,2]
[346059940,1734684636644,-800.0,0.00020068,2]
[346059941,1734684636654,-150.0,0.00020139,4]
[346059942,1734684636664,-150.0,0.00020139,4]
[346059943,1734684636673,-1450.07,0.00020219,2]
[346059944,1734684636683,-436.8,0.00020219,2]
[346059945,1734684636692,-436.8,0.00020219,2]
[346059946,1734684636702,-436.8,0.00020219,2]
[346059947,1734684636711,-150.0,0.00020278,2]
[346059948,1734684636720,-150.0,0.00020278,2]
[346059949,1734684636729,-726.9,0.00020278,2]
[346059950,1734684636738,-3000.0,0.000203,2]
[346059951,1734684636748,-150.0,0.00020327,4]
[346059952,1734684636761,-150.0,0.00020358,4]
[346059953,1734684636770,-1000.0,0.000204,2]
[346059954,1734684636780,-1000.0,0.000204,2]
[346059955,1734684636789,-1000.0,0.000204,2]
[346059956,1734684636799,-1084.0,0.000204,2]
[346059957,1734684636809,-250.0,0.00020405,2]
[346059958,1734684636818,-475.61,0.00020455,2]
[346059959,1734684636831,-1000.0,0.000205,2]
[346059960,1734684636840,-1009.0,0.000205,2]
[346059961,1734684636851,-150.0,0.00020577,4]
[346059962,1734684636861,-150.0,0.00020577,4]
[346059963,1734684636870,-419.46,0.0002063,2]
[346059964,1734684636879,-150.0,0.0002064,4]
[346059965,1734684636889,-831.46,0.00020672,2]
[346059966,1734684636899,-1000.0,0.00020688,2]
[346059967,1734684636909,-6279.46530162,0.0002079,2]
[346059968,1734684636919,-150.0,0.00020796,4]
[346059969,1734684636928,-150.0,0.00020796,4]
[346059970,1734684636938,-787.72,0.000209,3]
[346059971,1734684636947,-512.9583,0.000209,2]
[346059972,1734684636957,-1171.9386,0.000209,2]
[346059973,1734684636966,-174.65639379,0.000209,2]
[346059974,1734684636975,-235.45,0.00020904,2]
[346059975,1734684636984,-976.77,0.00020904,2]
[346059976,1734684636993,-976.77,0.00020904,2]
[346059977,1734684637002,-463.22,0.00020904,2]
[346059978,1734684637015,-1492.13,0.00020951,5]
[346059979,1734684637024,-27702.89,0.00020951,2]
[346059980,1734684637033,-111808.8,0.00020951,2]
[346059981,1734684637043,-999.99,0.00020951,2]
[346059982,1734684637052,-9999.99,0.00020951,2]
[346059983,1734684637061,-150.99,0.00020951,2]
[346059984,1734684637071,-299.99,0.00020951,7]
[346059985,1734684637080,-4214.28,0.00020951,2]
[346059986,1734684637090,-9999.99,0.00020951,2]
[346059987,1734684637099,-2984.32,0.00020951,2]
[346059988,1734684637108,-2524.27,0.00020951,2]
[346059989,1734684637118,-1308.39,0.00020951,2]
[346059990,1734684637127,-150.99,0.00020951,2]
[346059991,1734684637137,-1519.7,0.00020951,2]
[346059992,1734684637147,-9999.99,0.00020951,2]
[346059993,1734684637156,-807.25,0.00020951,2]
[346059994,1734684637166,-3586.13,0.00020951,2]
[346059995,1734684637176,-291.19,0.00020951,2]
[346059996,1734684637185,-1439.3,0.00020951,2]
[346059997,1734684637195,-150.0,0.00020952,4]
[346059998,1734684637205,-155.78,0.0002099,2]
[346059999,1734684637215,-232047.20015741,0.00021,2]
[346060000,1734684637248,-913.69201249,0.00021,2]
[346060001,1734684637264,-6599.99999998,0.00021,2]
[346060014,1734684638019,-1455.02450611,0.0002088,2]
[346060015,1734684638074,-1115.76125514,0.0002088,2]
[346060016,1734684638131,-3644.25850627,0.0002088,2]
[346060017,1734684638143,-91462.96016959,0.0002088,2]
[346060018,1734684638155,-602.36438288,0.0002088,2]
[346060019,1734684638517,-960.0,0.0002088,2]
[346060020,1734684638696,-9856.69697128,0.0002088,2]
[346060021,1734684638709,-46159.20445092,0.0002088,2]
[346060022,1734684638721,-881.45635511,0.0002088,2]
[346060023,1734684638731,-3620.75000723,0.0002088,2]
[346060024,1734684638743,-669.3756678,0.0002088,2]
[346060025,1734684638757,-2237.03606858,0.0002088,2]
[346060026,1734684638768,-24058.95821589,0.0002088,2]
[346060027,1734684638778,-38206.68509627,0.00021,2]
[346060028,1734684638788,-7458.50457704,0.00021,2]
[346060029,1734684638799,-13658.37224087,0.00021,2]
[346060030,1734684638811,-1441.455,0.00021,2]
[346060031,1734684638823,-18200.0000032,0.00021,2]
[346060032,1734684638834,-27972.44905001,0.00021,2]
[346060033,1734684638846,-28082.43691781,0.00021,2]
[346060034,1734684638869,-295.74833071,0.00021,2]
[346060035,1734684638881,-2496.72616106,0.00021,2]
[346060092,1734684640035,-979.13,0.0002058,2]
[346060093,1734684640045,-15615.03625925,0.00021,2]
[346060094,1734684640096,-30047.50505067,0.00021,2]
[346060095,1734684640106,-500.0,0.00021,2]
[346060096,1734684640115,-274.96069154,0.00021,2]
[346060097,1734684640125,-4635.08255575,0.00021,2]
[346060098,1734684640134,-5008.25808143,0.00021,5]
[346060099,1734684640143,-650.0,0.00021,2]
[346060100,1734684640152,-2452.66782,0.00021,2]
[346060101,1734684640161,-502.73,0.00021002,2]
[346060102,1734684640170,-494.91,0.00021002,2]
[346060103,1734684640179,-150.0,0.00021015,4]
[346060104,1734684640189,-150.0,0.00021015,4]
[346060105,1734684640198,-800.0,0.00021164,2]
[346060106,1734684640207,-218.8,0.00021178,2]
[346060107,1734684640217,-150.0,0.00021234,4]
[346060108,1734684640226,-729.0,0.00021249,2]
[346060109,1734684640235,-150.0,0.00021265,4]
[346060110,1734684640244,-180.2730581,0.00021282,2]
[346060111,1734684640253,-200.0,0.000213,7]
[346060112,1734684640266,-500.0,0.000214,7]
[346060113,1734684640275,-150.0,0.00021453,4]
[346060114,1734684640284,-150.0,0.00021453,4]
[346060115,1734684640293,-700.0,0.000215,7]
[346060116,1734684640302,-174.65639376,0.000215,2]
[346060117,1734684640311,-500.0,0.00021542,2]
[346060118,1734684640321,-500.0,0.00021543,2]
[346060119,1734684640330,-500.0,0.00021543,2]
[346060120,1734684640339,-1262.0,0.00021543,2]
[346060121,1734684640348,-484.715,0.00021543,2]
[346060122,1734684640357,-563.0,0.00021543,2]
[346060123,1734684640367,-1255.0,0.00021543,2]
[346060124,1734684640376,-329.009,0.00021543,2]
[346060125,1734684640385,-916.681,0.00021543,2]
[346060126,1734684640395,-1270.233,0.00021543,2]
[346060127,1734684640404,-534.0,0.00021543,2]
[346060128,1734684640414,-2124.288,0.00021543,2]
[346060129,1734684640423,-150.0,0.00021543,2]
[346060130,1734684640433,-1170.0,0.00021543,2]
[346060131,1734684640442,-3885.0,0.00021543,2]
[346060132,1734684640452,-13750.0,0.00021543,2]
[346060133,1734684640461,-150.0,0.00021578,4]
[346060134,1734684640470,-153.92662938,0.0002158,2]
[346060135,1734684640480,-1000.0,0.000216,7]
[346060136,1734684640489,-155.78,0.0002167,2]
[346060137,1734684640498,-155.78,0.0002167,2]
[346060138,1734684640509,-155.78,0.0002167,2]
[346060139,1734684640518,-155.78,0.0002167,2]
[346060140,1734684640528,-155.78,0.0002167,2]
[346060141,1734684640537,-150.0,0.00021672,4]
[346060142,1734684640547,-999.0,0.00021679,2]
[346060143,1734684640556,-226.17391882,0.00021679,2]
[346060144,1734684640565,-1026.0,0.0002168,2]
[346060145,1734684640575,-1840693.88795663,0.0002168,2]
[346060146,1734684640584,-151.0,0.0002168,2]
[346060147,1734684640594,-151.634833,0.0002168,2]
[346060149,1734684640603,-151.0,0.0002168,2]
[346060151,1734684640614,-151.0,0.0002168,2]
[346060153,1734684640623,-151.0,0.0002168,2]
[346060155,1734684640632,-1200.0,0.000217,7]
[346060156,1734684640642,-1047.61817946,0.00021716,5]
[346060158,1734684640651,-500.0,0.00021716,2]
[346060159,1734684640661,-123118.01534165,0.00021717,2]
[346060160,1734684640670,-12598.00233847,0.00021717,2]
[346060161,1734684640680,-577.0,0.00021717,2]
[346060162,1734684640690,-504.736,0.00021717,2]
[346060163,1734684640701,-865.3635201,0.00021719,2]
[346060164,1734684640710,-151.0,0.00021726,2]
[346060166,1734684640719,-150.0,0.00021726,2]
[346060167,1734684640729,-150.0,0.00021726,2]